[Event "*** Titled Tuesday Blitz"]
[Site "Chess.com"]
[Date "2020.12.29"]
[Round "7"]
[White "VerdeNotte"]
[Black "vinniethepooh"]
[Result "1-0"]
[WhiteElo "2889"]
[BlackElo "2698"]
[TimeControl "180+1"]
[EndTime "11:18:40 PST"]
[Termination "VerdeNotte won on time"]

1. Nf3 {[%clk 0:02:51.8]} 1... d5 {[%clk 0:02:59.7]} 2. b3 {[%clk 0:02:51.4]}
2... Nf6 {[%clk 0:02:59.9]} 3. Bb2 {[%clk 0:02:51.7]} 3... g6 {[%clk 0:03:00.4]}
4. g3 {[%clk 0:02:51.7]} 4... Bg7 {[%clk 0:03:00.4]} 5. Bg2 {[%clk 0:02:52.3]}
5... O-O {[%clk 0:03:00.9]} 6. c4 {[%clk 0:02:51]} 6... c6 {[%clk 0:02:56.9]} 7.
O-O {[%clk 0:02:50.6]} 7... Nbd7 {[%clk 0:02:57]} 8. d3 {[%clk 0:02:46.6]} 8...
Re8 {[%clk 0:02:56.6]} 9. cxd5 {[%clk 0:02:45.3]} 9... cxd5 {[%clk 0:02:54.9]}
10. Nc3 {[%clk 0:02:40.1]} 10... e5 {[%clk 0:02:52.8]} 11. Rc1 {[%clk 0:02:36]}
11... a6 {[%clk 0:02:51.6]} 12. e4 {[%clk 0:02:29.3]} 12... d4 {[%clk
0:02:50.1]} 13. Ne2 {[%clk 0:02:26.9]} 13... b5 {[%clk 0:02:46.1]} 14. Qd2
{[%clk 0:02:22]} 14... Bb7 {[%clk 0:02:44.5]} 15. Ba3 {[%clk 0:02:20.7]} 15...
a5 {[%clk 0:02:36.6]} 16. b4 {[%clk 0:02:05.1]} 16... a4 {[%clk 0:02:29.7]} 17.
Rc2 {[%clk 0:02:03.6]} 17... Qb6 {[%clk 0:02:28.2]} 18. Rfc1 {[%clk 0:02:01.3]}
18... h6 {[%clk 0:02:28.4]} 19. Bh3 {[%clk 0:01:59.8]} 19... Bf8 {[%clk
0:02:15.9]} 20. Rc7 {[%clk 0:01:52.5]} 20... Rad8 {[%clk 0:02:04.7]} 21. Nh4
{[%clk 0:01:50.2]} 21... Bd6 {[%clk 0:01:55.4]} 22. R7c2 {[%clk 0:01:23.8]}
22... Kh7 {[%clk 0:01:55.5]} 23. f4 {[%clk 0:01:19]} 23... exf4 {[%clk
0:01:48.8]} 24. Nxf4 {[%clk 0:01:17]} 24... Ne5 {[%clk 0:01:42.8]} 25. Qf2
{[%clk 0:01:06]} 25... Nfg4 {[%clk 0:01:33.8]} 26. Bxg4 {[%clk 0:01:05]} 26...
Nxg4 {[%clk 0:01:34.7]} 27. Qf3 {[%clk 0:01:00.4]} 27... Ne5 {[%clk 0:01:26.8]}
28. Qf2 {[%clk 0:00:57.8]} 28... Bb8 {[%clk 0:00:47.4]} 29. h3 {[%clk
0:00:31.5]} 29... Qf6 {[%clk 0:00:42.6]} 30. Qe2 {[%clk 0:00:23.9]} 30... Qe7
{[%clk 0:00:27.1]} 31. Rf1 {[%clk 0:00:22.2]} 31... Rc8 {[%clk 0:00:23.3]} 32.
Rc5 {[%clk 0:00:19.2]} 32... Bc6 {[%clk 0:00:13.7]} 33. Kh2 {[%clk 0:00:17.4]}
33... Bd6 {[%clk 0:00:13.4]} 34. Rc2 {[%clk 0:00:16.5]} 34... Qd7 {[%clk
0:00:11.7]} 35. Qf2 {[%clk 0:00:11.5]} 35... Bb7 {[%clk 0:00:12.1]} 36. Rxc8
{[%clk 0:00:09.6]} 36... Rxc8 {[%clk 0:00:11.4]} 37. Qxd4 {[%clk 0:00:09.9]}
37... Qe7 {[%clk 0:00:09.6]} 38. Nd5 {[%clk 0:00:08.5]} 38... Bxd5 {[%clk
0:00:08]} 39. Qxd5 {[%clk 0:00:08.4]} 39... Rc2+ {[%clk 0:00:08.4]} 40. Ng2
{[%clk 0:00:08.5]} 40... Kg7 {[%clk 0:00:06.1]} 41. d4 {[%clk 0:00:08.2]} 41...
Nd3 {[%clk 0:00:03.7]} 42. e5 {[%clk 0:00:08.7]} 42... Bxb4 {[%clk 0:00:04]} 43.
Bxb4 {[%clk 0:00:08.5]} 43... Nxb4 {[%clk 0:00:04.9]} 44. Qe4 {[%clk 0:00:07.1]}
44... Rxa2 {[%clk 0:00:05.1]} 45. d5 {[%clk 0:00:07.2]} 45... Rd2 {[%clk
0:00:05.1]} 46. d6 {[%clk 0:00:07]} 46... Rxd6 {[%clk 0:00:03.8]} 47. Qxb4
{[%clk 0:00:07.3]} 47... Re6 {[%clk 0:00:04.4]} 48. Qxb5 {[%clk 0:00:06.4]}
48... a3 {[%clk 0:00:04.7]} 49. Re1 {[%clk 0:00:04.4]} 49... Qd8 {[%clk
0:00:05.2]} 50. Qb3 {[%clk 0:00:03.8]} 50... Qd2 {[%clk 0:00:05.4]} 51. Qxa3
{[%clk 0:00:04]} 51... Rc6 {[%clk 0:00:04.2]} 52. Qe3 {[%clk 0:00:04.1]} 52...
Qb4 {[%clk 0:00:03.7]} 53. Re2 {[%clk 0:00:04.3]} 53... Qc4 {[%clk 0:00:02.5]}
54. Rd2 {[%clk 0:00:04]} 54... Qb4 {[%clk 0:00:02.8]} 55. Qd4 {[%clk 0:00:04.2]}
55... Qb1 {[%clk 0:00:01.2]} 56. e6+ {[%clk 0:00:04.4]} 56... Kh7 {[%clk
0:00:01.8]} 57. exf7 {[%clk 0:00:03.4]} 57... Rc1 {[%clk 0:00:02.4]} 58. Rd1
{[%clk 0:00:02.9]} 58... Rxd1 {[%clk 0:00:02.1]} 59. Qxd1 {[%clk 0:00:03.2]}
59... Qxd1 {[%clk 0:00:02.7]} 60. f8=Q {[%clk 0:00:03.8]} 60... Qd5 {[%clk
0:00:03.2]} 61. Qf4 {[%clk 0:00:03.5]} 61... Qd3 {[%clk 0:00:03.4]} 62. h4
{[%clk 0:00:03.6]} 62... Qe2 {[%clk 0:00:02.8]} 63. Qf7+ {[%clk 0:00:03.7]}
63... Kh8 {[%clk 0:00:02.6]} 64. Qxg6 {[%clk 0:00:04.6]} 64... h5 {[%clk
0:00:03]} 65. Qh6+ {[%clk 0:00:05]} 65... Kg8 {[%clk 0:00:02.7]} 66. Qg5+ {[%clk
0:00:05.7]} 66... Kh8 {[%clk 0:00:03.2]} 67. Qf4 {[%clk 0:00:06]} 67... Kh7
{[%clk 0:00:03.3]} 68. Qe3 {[%clk 0:00:06.2]} 68... Qd1 {[%clk 0:00:02.8]} 69.
Qe7+ {[%clk 0:00:06.1]} 69... Kg8 {[%clk 0:00:02.3]} 70. Nf4 {[%clk 0:00:06.2]}
70... Qc2+ {[%clk 0:00:01.6]} 71. Qe2 {[%clk 0:00:06.4]} 71... Qf5 {[%clk
0:00:01.7]} 72. Qxh5 {[%clk 0:00:06.4]} 72... Qc2+ {[%clk 0:00:02.3]} 73. Kh3
{[%clk 0:00:06.6]} 73... Qc5 {[%clk 0:00:01.6]} 74. Qxc5 {[%clk 0:00:06.4]} 1-0

[Event "*** Titled Tuesday Blitz"]
[Site "Chess.com"]
[Date "2020.12.29"]
[Round "7"]
[White "MaevskiyNikolay"]
[Black "swimmerchess"]
[Result "0-1"]
[WhiteElo "2592"]
[BlackElo "2802"]
[TimeControl "180+1"]
[EndTime "11:19:05 PST"]
[Termination "swimmerchess won on time"]

1. c4 {[%clk 0:03:00.9]} 1... Nf6 {[%clk 0:02:54.6]} 2. Nc3 {[%clk 0:03:01.4]}
2... g6 {[%clk 0:02:54.6]} 3. g3 {[%clk 0:03:01.2]} 3... Bg7 {[%clk 0:02:55]} 4.
Bg2 {[%clk 0:03:01.4]} 4... O-O {[%clk 0:02:55.9]} 5. e4 {[%clk 0:03:00.4]} 5...
d6 {[%clk 0:02:56.8]} 6. Nge2 {[%clk 0:03:00.5]} 6... c5 {[%clk 0:02:55.8]} 7.
d3 {[%clk 0:02:57.8]} 7... Nc6 {[%clk 0:02:56.3]} 8. Be3 {[%clk 0:02:57.2]} 8...
Ng4 {[%clk 0:02:47.9]} 9. Bd2 {[%clk 0:02:56.5]} 9... Nd4 {[%clk 0:02:44.1]} 10.
O-O {[%clk 0:02:53.8]} 10... Ne5 {[%clk 0:02:39.7]} 11. Be3 {[%clk 0:02:20.7]}
11... Nef3+ {[%clk 0:02:08.1]} 12. Kh1 {[%clk 0:02:20]} 12... Nxe2 {[%clk
0:01:58.7]} 13. Nxe2 {[%clk 0:02:11.2]} 13... Nd4 {[%clk 0:01:58.3]} 14. Nxd4
{[%clk 0:02:05.7]} 14... cxd4 {[%clk 0:01:59.2]} 15. Bd2 {[%clk 0:02:05.4]}
15... e5 {[%clk 0:01:58.2]} 16. b4 {[%clk 0:02:00.6]} 16... f5 {[%clk
0:01:58.6]} 17. exf5 {[%clk 0:01:57.8]} 17... gxf5 {[%clk 0:01:59.5]} 18. Bd5+
{[%clk 0:01:55.5]} 18... Kh8 {[%clk 0:01:59.4]} 19. f4 {[%clk 0:01:51.2]} 19...
Qe7 {[%clk 0:01:58.6]} 20. Qf3 {[%clk 0:01:48.1]} 20... Be6 {[%clk 0:01:56.9]}
21. Rfe1 {[%clk 0:01:38]} 21... Rab8 {[%clk 0:01:51.2]} 22. b5 {[%clk 0:01:35]}
22... Qf7 {[%clk 0:01:39.4]} 23. Bxe6 {[%clk 0:01:31.9]} 23... Qxe6 {[%clk
0:01:39.3]} 24. Bb4 {[%clk 0:01:12.5]} 24... Rfe8 {[%clk 0:01:10.4]} 25. fxe5
{[%clk 0:00:53.2]} 25... dxe5 {[%clk 0:01:07.7]} 26. Rf1 {[%clk 0:00:51.5]}
26... e4 {[%clk 0:01:02.8]} 27. Qxf5 {[%clk 0:00:50.9]} 27... Qxf5 {[%clk
0:01:00.1]} 28. Rxf5 {[%clk 0:00:50.8]} 28... exd3 {[%clk 0:01:01]} 29. Rd1
{[%clk 0:00:49]} 29... Rbc8 {[%clk 0:00:50.9]} 30. c5 {[%clk 0:00:41.7]} 30...
Re2 {[%clk 0:00:47.8]} 31. Rxd3 {[%clk 0:00:36.6]} 31... Rxa2 {[%clk 0:00:46.8]}
32. Kg1 {[%clk 0:00:28.2]} 32... Rb2 {[%clk 0:00:46.4]} 33. Bd2 {[%clk
0:00:21.2]} 33... Rxb5 {[%clk 0:00:45.9]} 34. Rf7 {[%clk 0:00:12.2]} 34... Rcxc5
{[%clk 0:00:40.1]} 35. h4 {[%clk 0:00:11.5]} 35... Kg8 {[%clk 0:00:37]} 36. Rd7
{[%clk 0:00:11]} 36... Rd5 {[%clk 0:00:36.8]} 37. Rc7 {[%clk 0:00:11.2]} 37...
Be5 {[%clk 0:00:32.9]} 38. Rc8+ {[%clk 0:00:09.5]} 38... Kf7 {[%clk 0:00:32.7]}
39. Kg2 {[%clk 0:00:09.9]} 39... a5 {[%clk 0:00:32.3]} 40. Ra8 {[%clk 0:00:09]}
40... b6 {[%clk 0:00:31.7]} 41. Kf3 {[%clk 0:00:08.9]} 41... Bf6 {[%clk
0:00:28.5]} 42. Ra7+ {[%clk 0:00:08.8]} 42... Kg6 {[%clk 0:00:28.1]} 43. Bf4
{[%clk 0:00:08.7]} 43... h5 {[%clk 0:00:27.9]} 44. Ra8 {[%clk 0:00:07.9]} 44...
Rd7 {[%clk 0:00:21.6]} 45. g4 {[%clk 0:00:07]} 45... Rb4 {[%clk 0:00:20.4]} 46.
gxh5+ {[%clk 0:00:06.9]} 46... Kxh5 {[%clk 0:00:21.2]} 47. Rf8 {[%clk
0:00:06.1]} 47... Bg7 {[%clk 0:00:20.5]} 48. Rf5+ {[%clk 0:00:05.7]} 48... Kg6
{[%clk 0:00:20.9]} 49. Rg5+ {[%clk 0:00:05.1]} 49... Kh7 {[%clk 0:00:21.4]} 50.
Kg4 {[%clk 0:00:05.4]} 50... a4 {[%clk 0:00:21.2]} 51. Rh5+ {[%clk 0:00:05.5]}
51... Kg8 {[%clk 0:00:21]} 52. Rg5 {[%clk 0:00:05.8]} 52... Rb3 {[%clk
0:00:21.5]} 53. Rd2 {[%clk 0:00:05.5]} 53... a3 {[%clk 0:00:21.4]} 54. h5 {[%clk
0:00:05.8]} 54... Kh7 {[%clk 0:00:20.9]} 55. Rg6 {[%clk 0:00:05.1]} 55... Rb2
{[%clk 0:00:20.6]} 56. Rd3 {[%clk 0:00:05.3]} 56... a2 {[%clk 0:00:20.3]} 57.
Ra3 {[%clk 0:00:05.4]} 57... d3 {[%clk 0:00:20.9]} 58. Rc6 {[%clk 0:00:04]}
58... a1=Q {[%clk 0:00:20.3]} 59. Rxa1 {[%clk 0:00:03.5]} 59... Rg2+ {[%clk
0:00:19.4]} 60. Kf3 {[%clk 0:00:04.1]} 60... Bxa1 {[%clk 0:00:19]} 61. Kxg2
{[%clk 0:00:04.3]} 61... Bd4 {[%clk 0:00:19.7]} 62. Rg6 {[%clk 0:00:03.6]} 62...
Bc5 {[%clk 0:00:18.4]} 63. Bd2 {[%clk 0:00:02.9]} 63... Re7 {[%clk 0:00:17]} 64.
Kf3 {[%clk 0:00:02.1]} 64... Re2 {[%clk 0:00:16.3]} 65. Bc3 {[%clk 0:00:02.2]}
65... Rc2 {[%clk 0:00:15.4]} 66. Be1 {[%clk 0:00:01.4]} 66... d2 {[%clk
0:00:15]} 67. Bxd2 {[%clk 0:00:02]} 67... Rxd2 {[%clk 0:00:15.9]} 68. Rc6 {[%clk
0:00:02.2]} 68... Rd5 {[%clk 0:00:15.6]} 69. Kg4 {[%clk 0:00:02.5]} 69... b5
{[%clk 0:00:16]} 70. Rc7+ {[%clk 0:00:02.9]} 70... Kh6 {[%clk 0:00:16.2]} 71.
Rb7 {[%clk 0:00:03.6]} 71... b4 {[%clk 0:00:16.1]} 72. Rb5 {[%clk 0:00:03.5]}
72... Rd4+ {[%clk 0:00:14.9]} 73. Kf3 {[%clk 0:00:03.6]} 73... Rc4 {[%clk
0:00:14.9]} 74. Kg3 {[%clk 0:00:03.2]} 74... Kxh5 {[%clk 0:00:15.1]} 75. Kf3
{[%clk 0:00:03.6]} 75... Kg5 {[%clk 0:00:15.6]} 76. Ke2 {[%clk 0:00:03.2]} 76...
Kf5 {[%clk 0:00:16.1]} 77. Kd3 {[%clk 0:00:03.2]} 77... Rc3+ {[%clk 0:00:16.7]}
78. Kd2 {[%clk 0:00:03.7]} 78... Ke4 {[%clk 0:00:17.6]} 79. Rb8 {[%clk
0:00:03.8]} 79... Kd4 {[%clk 0:00:17.7]} 80. Rd8+ {[%clk 0:00:04.4]} 80... Kc4
{[%clk 0:00:18]} 81. Rb8 {[%clk 0:00:05]} 81... b3 {[%clk 0:00:17.9]} 82. Rc8
{[%clk 0:00:05.1]} 82... Rc2+ {[%clk 0:00:18.4]} 83. Kd1 {[%clk 0:00:04.2]}
83... Kd3 {[%clk 0:00:18.6]} 84. Rd8+ {[%clk 0:00:02.6]} 84... Bd4 {[%clk
0:00:19]} 85. Rb8 {[%clk 0:00:02]} 85... b2 {[%clk 0:00:18.3]} 86. Rb3+ {[%clk
0:00:01.8]} 86... Bc3 {[%clk 0:00:18.8]} 0-1

[Event "*** Titled Tuesday Blitz"]
[Site "Chess.com"]
[Date "2020.12.29"]
[Round "7"]
[White "No_t_ime_to_die"]
[Black "mbojan"]
[Result "0-1"]
[WhiteElo "2484"]
[BlackElo "2684"]
[TimeControl "180+1"]
[EndTime "11:19:48 PST"]
[Termination "mbojan won by resignation"]

1. e4 {[%clk 0:02:53.4]} 1... g6 {[%clk 0:03:00.9]} 2. d4 {[%clk 0:02:52.9]}
2... Bg7 {[%clk 0:03:01.2]} 3. Nc3 {[%clk 0:02:53.5]} 3... d6 {[%clk 0:03:01.7]}
4. Be3 {[%clk 0:02:50.4]} 4... a6 {[%clk 0:03:01.9]} 5. f4 {[%clk 0:02:44.6]}
5... b5 {[%clk 0:03:00]} 6. e5 {[%clk 0:02:43.9]} 6... Nd7 {[%clk 0:02:58]} 7.
Nf3 {[%clk 0:02:43.6]} 7... Bb7 {[%clk 0:02:55]} 8. Bd3 {[%clk 0:02:44.2]} 8...
c5 {[%clk 0:02:47.9]} 9. Be4 {[%clk 0:02:37.4]} 9... Bxe4 {[%clk 0:02:43.7]} 10.
Nxe4 {[%clk 0:02:38.3]} 10... Nh6 {[%clk 0:02:24.3]} 11. exd6 {[%clk 0:02:29.3]}
11... O-O {[%clk 0:02:24.1]} 12. dxc5 {[%clk 0:02:24.2]} 12... exd6 {[%clk
0:02:24.1]} 13. Nxd6 {[%clk 0:02:23.1]} 13... Bxb2 {[%clk 0:02:15.5]} 14. Rb1
{[%clk 0:02:15.9]} 14... Bc3+ {[%clk 0:02:14.9]} 15. Ke2 {[%clk 0:02:16.5]}
15... Qe7 {[%clk 0:02:01.5]} 16. Rb3 {[%clk 0:02:14.1]} 16... b4 {[%clk
0:01:57.4]} 17. Qd5 {[%clk 0:01:48.9]} 17... Ng4 {[%clk 0:01:45.8]} 18. Ne5
{[%clk 0:01:34.7]} 18... Ndxe5 {[%clk 0:01:31.6]} 19. fxe5 {[%clk 0:01:34.1]}
19... Nxe5 {[%clk 0:01:22.7]} 20. Qe4 {[%clk 0:01:17]} 20... Qe6 {[%clk
0:00:47.6]} 21. Rd1 {[%clk 0:00:32]} 21... a5 {[%clk 0:00:39.3]} 22. a4 {[%clk
0:00:23.7]} 22... Rad8 {[%clk 0:00:32.2]} 23. h3 {[%clk 0:00:23.4]} 23... Kg7
{[%clk 0:00:09.4]} 24. Qd5 {[%clk 0:00:23.2]} 24... Qxd5 {[%clk 0:00:09.2]} 25.
Rxd5 {[%clk 0:00:23.7]} 25... Nc6 {[%clk 0:00:09.1]} 26. Rd1 {[%clk 0:00:17.7]}
26... Kg8 {[%clk 0:00:07.7]} 27. Kd3 {[%clk 0:00:17.4]} 27... Ne5+ {[%clk
0:00:07]} 28. Ke2 {[%clk 0:00:17.8]} 28... f5 {[%clk 0:00:06.6]} 29. Bg5 {[%clk
0:00:16.6]} 29... Rd7 {[%clk 0:00:06.2]} 30. Rbb1 {[%clk 0:00:12.8]} 30... Nc6
{[%clk 0:00:04.6]} 31. Kf2 {[%clk 0:00:11.7]} 31... f4 {[%clk 0:00:04.6]} 32.
Nb5 {[%clk 0:00:10.1]} 32... Rdf7 {[%clk 0:00:02.9]} 33. Rd6 {[%clk 0:00:09.3]}
33... Ne5 {[%clk 0:00:01.7]} 34. Rbd1 {[%clk 0:00:09.6]} 34... f3 {[%clk
0:00:02.1]} 35. g4 {[%clk 0:00:09.1]} 35... h5 {[%clk 0:00:02]} 36. gxh5 {[%clk
0:00:07.2]} 36... gxh5 {[%clk 0:00:02.9]} 37. Rh6 {[%clk 0:00:07.6]} 37... Rg7
{[%clk 0:00:03]} 38. Rxh5 {[%clk 0:00:07.7]} 38... Rg6 {[%clk 0:00:02.9]} 39. h4
{[%clk 0:00:08.1]} 39... Ng4+ {[%clk 0:00:02.8]} 40. Kg3 {[%clk 0:00:07.8]}
40... f2 {[%clk 0:00:03.7]} 41. Kxg4 {[%clk 0:00:08.1]} 41... f1=Q {[%clk
0:00:04]} 42. Rxf1 {[%clk 0:00:08.8]} 42... Rxf1 {[%clk 0:00:04.8]} 43. Nd6
{[%clk 0:00:08]} 43... Rg1+ {[%clk 0:00:04.6]} 44. Kf3 {[%clk 0:00:08]} 44...
Rf1+ {[%clk 0:00:04.8]} 45. Ke2 {[%clk 0:00:07.8]} 45... Rf8 {[%clk 0:00:05.3]}
46. Ne4 {[%clk 0:00:07.6]} 46... Re6 {[%clk 0:00:05.2]} 47. Kd3 {[%clk
0:00:07.5]} 47... Rf3+ {[%clk 0:00:05.5]} 48. Be3 {[%clk 0:00:06.2]} 48... Rh3
{[%clk 0:00:05]} 49. Rg5+ {[%clk 0:00:06.6]} 49... Kh7 {[%clk 0:00:05.1]} 50.
Rh5+ {[%clk 0:00:06.5]} 50... Kg8 {[%clk 0:00:05.7]} 51. Rg5+ {[%clk 0:00:06.5]}
51... Bg7 {[%clk 0:00:06.1]} 52. Rg4 {[%clk 0:00:06.7]} 52... Kh8 {[%clk
0:00:05.1]} 53. Kd2 {[%clk 0:00:03.4]} 53... Rh2+ {[%clk 0:00:04.4]} 54. Kd3
{[%clk 0:00:04]} 54... Rh3 {[%clk 0:00:05]} 55. Kd2 {[%clk 0:00:04.7]} 55...
Rh2+ {[%clk 0:00:05.7]} 56. Kd3 {[%clk 0:00:05.4]} 56... Rh1 {[%clk 0:00:06.6]}
57. Ng5 {[%clk 0:00:05.5]} 57... Re7 {[%clk 0:00:05.6]} 58. Ne4 {[%clk 0:00:05]}
58... Rd7+ {[%clk 0:00:05.9]} 59. Kc4 {[%clk 0:00:05.6]} 59... Rh2 {[%clk
0:00:05.7]} 60. c3 {[%clk 0:00:04.4]} 60... bxc3 {[%clk 0:00:05.3]} 61. Nxc3
{[%clk 0:00:04.3]} 61... Bxc3 {[%clk 0:00:05.4]} 62. Kxc3 {[%clk 0:00:04.1]}
62... Rh3 {[%clk 0:00:05.6]} 63. Re4 {[%clk 0:00:04.4]} 63... Rh7 {[%clk
0:00:05.7]} 64. Kc4 {[%clk 0:00:03.9]} 64... R7xh4 {[%clk 0:00:06]} 65. Rxh4+
{[%clk 0:00:03.3]} 65... Rxh4+ {[%clk 0:00:06.9]} 66. Bd4+ {[%clk 0:00:03.9]}
66... Kg8 {[%clk 0:00:07.1]} 67. Kd5 {[%clk 0:00:04.5]} 67... Kf7 {[%clk
0:00:07.3]} 68. c6 {[%clk 0:00:05.1]} 68... Ke8 {[%clk 0:00:07.6]} 69. Bf6
{[%clk 0:00:04.2]} 69... Rxa4 {[%clk 0:00:07.3]} 70. c7 {[%clk 0:00:04.4]} 70...
Kd7 {[%clk 0:00:08.2]} 71. Bd8 {[%clk 0:00:04]} 71... Rb4 {[%clk 0:00:07.9]} 72.
Kc5 {[%clk 0:00:04.9]} 72... Rb1 {[%clk 0:00:06.8]} 73. c8=Q+ {[%clk 0:00:04.4]}
73... Kxc8 {[%clk 0:00:07.4]} 74. Bxa5 {[%clk 0:00:05.2]} 74... Kb7 {[%clk
0:00:08]} 75. Bc3 {[%clk 0:00:05.5]} 75... Rc1 {[%clk 0:00:08]} 76. Kc4 {[%clk
0:00:05.8]} 76... Kc6 {[%clk 0:00:08.9]} 77. Kd3 {[%clk 0:00:06.6]} 77... Rh1
{[%clk 0:00:08.8]} 78. Bd2 {[%clk 0:00:07.5]} 78... Kd5 {[%clk 0:00:09.5]} 79.
Ke2 {[%clk 0:00:08.3]} 79... Ke4 {[%clk 0:00:09.3]} 80. Be1 {[%clk 0:00:07.5]}
80... Kf4 {[%clk 0:00:08]} 81. Kf2 {[%clk 0:00:07.6]} 81... Rh2+ {[%clk
0:00:07.6]} 82. Kg1 {[%clk 0:00:07.9]} 82... Re2 {[%clk 0:00:07.8]} 83. Bf2
{[%clk 0:00:07.7]} 83... Kf3 {[%clk 0:00:07.9]} 84. Bh4 {[%clk 0:00:07.4]} 84...
Kg4 {[%clk 0:00:08.2]} 85. Bf2 {[%clk 0:00:07.2]} 85... Kf3 {[%clk 0:00:08.8]}
86. Bh4 {[%clk 0:00:07.3]} 86... Re4 {[%clk 0:00:09.5]} 87. Bd8 {[%clk
0:00:04.8]} 87... Re8 {[%clk 0:00:07.7]} 88. Bb6 {[%clk 0:00:04.2]} 88... Re6
{[%clk 0:00:07.4]} 89. Ba7 {[%clk 0:00:03.8]} 89... Ra6 {[%clk 0:00:06.7]} 90.
Bd4 {[%clk 0:00:03.7]} 90... Ra4 {[%clk 0:00:05.6]} 91. Bb6 {[%clk 0:00:03.6]}
91... Ra1+ {[%clk 0:00:05.2]} 92. Kh2 {[%clk 0:00:03.6]} 92... Rb1 {[%clk
0:00:06.1]} 93. Ba7 {[%clk 0:00:03.7]} 93... Rb7 {[%clk 0:00:06.1]} 94. Bc5
{[%clk 0:00:03.9]} 94... Rh7+ {[%clk 0:00:07]} 95. Kg1 {[%clk 0:00:04]} 95...
Rh5 {[%clk 0:00:07.9]} 96. Bb6 {[%clk 0:00:04.1]} 96... Rh7 {[%clk 0:00:07.4]}
97. Bc5 {[%clk 0:00:02.6]} 97... Rd7 {[%clk 0:00:07.5]} 98. Bb6 {[%clk
0:00:02.9]} 98... Kg3 {[%clk 0:00:07.2]} 99. Kh1 {[%clk 0:00:02.4]} 99... Kh3
{[%clk 0:00:04.6]} 100. Bc5 {[%clk 0:00:01.3]} 100... Kg4 {[%clk 0:00:05.5]}
101. Bb6 {[%clk 0:00:01.8]} 101... Kf3 {[%clk 0:00:06.4]} 102. Bc5 {[%clk
0:00:02.4]} 102... Rd5 {[%clk 0:00:06.9]} 103. Bb6 {[%clk 0:00:03.3]} 103... Rb5
{[%clk 0:00:07.7]} 104. Bc5 {[%clk 0:00:03.6]} 104... Rxc5 {[%clk 0:00:08]} 0-1